Cogmind - Beta 13 @@@ ROGUE MODE // 2024.03.16 @ 22:48:58 Player: opdo Result: Self-destructed Performance ------------- Evolutions (2) 1000 Regions Visited (6) 1200 Robots Destroyed (35) 175 Value Destroyed (850) 850 Prototype IDs (3) 60 Alien Tech Used (0) 0 Bonus (363) 363 TOTAL SCORE: 3648 Bonus ------- High Alert Combat Kills 11 Follower Combat Kills 52 Aligned with FarCom 300 Cogmind --------- Core Integrity 464/550 Matter 300/300 Energy 129/165 System Corruption 19% Temperature Cool (0) Movement Core (400) Ox7 Location -8/Materials Parts ------- > --- POWER (2) -------- Light Ion Engine Light Deuterium Engine > --- PROPULSION (4) --- (None) > --- UTILITY (3) ------ Small Storage Unit Improved Signal Interpreter Improved Terrain Scanner > --- WEAPON (2) ------- Latent Energy Streamer > --- INVENTORY (8) ---- Improved Terrain Scanner Splice Drone Bay (5/6) Medium Laser Field Laser Peak State ------------ > --- POWER ------------ Light Deuterium Engine Light Nuclear Core > --- PROPULSION ------- Aluminum Leg Flight Unit Flight Unit Flight Unit > --- UTILITY ---------- Small Storage Unit Improved Signal Interpreter Improved Terrain Scanner > --- WEAPON ----------- Latent Energy Streamer Light Assault Rifle > --- INVENTORY -------- Light Ion Engine Carbon-fiber Leg Improved Terrain Scanner Splice Drone Bay Medium Laser Field Laser [Rating: 29] Favorites ----------- Power Improved Ion Engine Engine Improved Ion Engine Power Core Light Nuclear Core Propulsion Aluminum Leg Leg Aluminum Leg Flight Unit Flight Unit Utility Small Storage Unit Device Improved Terrain Scanner Storage Small Storage Unit Processor Improved Targeting Computer Weapon Light Assault Rifle Energy Gun EM Shotgun Energy Cannon Latent Energy Streamer Ballistic Gun Light Assault Rifle Special Weapon Mining Laser Build | -11 -10 -9 -9 -9 -8 -8 ------- Run | Yrd Mat Mat Min Exi Min Mat Slots Evolved 4 | . . 2 . . . 2 Power 1 | . . . . . . 1 Propulsion 2 | . . 1 . . . 1 Utility 1 | . . 1 . . . . Weapon . | . . . . . . . Parts Attached 32 | 6 7 2 5 1 3 8 Power 7 | 1 1 1 . . . 4 Engine 6 | 1 1 1 . . . 3 Core 1 | . . . . . . 1 Reactor . | . . . . . . . Propulsion 9 | 2 1 . 1 . 3 2 Treads . | . . . . . . . Leg 6 | 2 1 . 1 . . 2 Wheel . | . . . . . . . Hover . | . . . . . . . Flight 3 | . . . . . 3 . Utility 6 | 1 1 1 1 . . 2 Device 3 | . . 1 1 . . 1 Storage 1 | 1 . . . . . . Processor 2 | . 1 . . . . 1 Hackware . | . . . . . . . Protection . | . . . . . . . Artifact . | . . . . . . . Weapon 10 | 2 4 . 3 1 . . Energy Gun 5 | 1 3 . 1 . . . Energy Cannon 1 | . . . . 1 . . Ballistic Gun 3 | 1 1 . 1 . . . Ballistic Cannon . | . . . . . . . Launcher . | . . . . . . . Special Weapon 1 | . . . 1 . . . Impact Weapon . | . . . . . . . Slashing Weapon . | . . . . . . . Piercing Weapon . | . . . . . . . Special Melee Weapon . | . . . . . . . Unidentified Prototypes 3 | . . . 1 2 . . Corrupted Parts 1 | . . . . . . 1 System Corruption 10 | . . . . . . 10 Parts Lost 8 | . . . . . . 8 Power 2 | . . . . . . 2 Propulsion 5 | . . . . . . 5 Utility . | . . . . . . . Weapon 1 | . . . . . . 1 Highest Loss Streak 7 | . . . . . . 7 To Critical Strikes . | . . . . . . . Average Slot Usage (%) 94 | . 98 87 99 94 86 95 Engine 11 | . 14 11 11 11 11 9 Core 1 | . . . . . . 7 Leg 25 | . 28 22 32 33 26 7 Flight 4 | . . . . . 4 25 Device 10 | . . 10 14 17 11 9 Storage 11 | . 14 11 11 11 11 9 Processor 7 | . 12 11 7 . . 8 Energy Gun 10 | . 27 11 11 6 . . Energy Cannon 3 | . . . . 4 11 9 Ballistic Gun 8 | . . 11 8 11 11 9 Naked Turns . | . . . . . . . Heaviest Build 29 | 14 16 16 24 24 24 29 Greatest Support 30 | 20 20 20 30 30 30 12 Greatest Overweight (x) 8 | 1 . . . . 5 8 Average Overweight (x) . | . . . . . . 1 Largest Inventory Capacity 8 | 8 8 8 8 8 8 8 Average Capacity 7 | 6 8 8 8 8 8 8 Most Carried 8 | 5 8 8 8 8 8 8 Average Carried 6 | 2 5 7 7 6 7 5 Final Capacity 8 | 8 8 8 8 8 8 8 Final Carried 8 | 2 6 8 6 8 8 4 Class Distribution -------------------- 47% | Mutant 25% | Scavenger-Mutant 25% | Scavenger-Skirmisher Dominant Class ---------------- Mutant | -10/Materials Mutant | -9/Materials Mutant | -9/Mines Scavenger-Mutant | -9/Exiles Scavenger-Skirmisher | -8/Mines Scavenger-Skirmisher | -8/Materials Resources | -11 -10 -9 -9 -9 -8 -8 ----------- Run | Yrd Mat Mat Min Exi Min Mat Matter Collected 578 | 153 135 82 85 . 51 72 Remotely . | . . . . . . . Salvage Created 1075 | . 298 214 104 . 54 405 Parts 70 | . 20 8 9 . 9 24 Haulers Intercepted 2 | . . 1 . . . 1 Recyclers Shooed 1 | . 1 . . . . . Parts Field Recycled . | . . . . . . . Retrieved Matter . | . . . . . . . Parts Self-Destructed . | . . . . . . . Prevented . | . . . . . . . Kills | -11 -10 -9 -9 -9 -8 -8 ------- Run | Yrd Mat Mat Min Exi Min Mat Combat Hostiles Destroyed 29 | . 8 5 6 . 3 7 Guns 19 | . 8 5 6 . . . AOE 10 | . . . . . 3 7 Classes Destroyed 9 | . 3 2 1 . . 3 Worker 2 | . . . . . . 2 Hauler 2 | . . 1 . . . 1 Recycler 1 | . . . . . . 1 Watcher 2 | . 1 . . . . 1 Swarmer 17 | . 3 3 4 . 3 4 Grunt 7 | . 5 . 1 . . 1 Sentry 2 | . . 2 . . . . Hunter 2 | . . . . . . 2 Assembled 1 | . . . 1 . . . Best Kill Streak 6 | . 3 3 4 . 3 6 Combat Bots Only 5 | . 3 3 4 . 3 5 Max Kills in Single Turn 5 | . 1 1 1 . 3 5 Gunslinging . | . . . . . . . Exploded 5 | . . . . . 3 5 Melee . | . . . . . . . Uniques/NPCs Destroyed . | . . . . . . . Combat | -11 -10 -9 -9 -9 -8 -8 -------- Run | Yrd Mat Mat Min Exi Min Mat Hostile Shots Fired 166 | . 29 36 35 . 1 65 Missed 50 | . 10 9 13 . . 18 Damage Taken 1321 | . 209 312 303 . 10 487 Core 306 | . 25 94 101 . . 86 Absorbed by Shields . | . . . . . . . Core Remaining (%) 80 | 100 90 . . . 51 . Volleys Fired 62 | . 19 16 11 . 1 15 Largest 2 | . 2 2 2 . 2 2 Hottest 90 | . 90 60 70 . 80 80 Shots Fired 112 | . 38 32 22 . 2 18 Gun 108 | . 38 32 22 . 1 15 Cannon 4 | . . . . . 1 3 Launcher . | . . . . . . . Special . | . . . . . . . Kinetic 43 | . . 16 11 . 1 15 Thermal 27 | . . 16 11 . . . Explosive . | . . . . . . . Electromagnetic 42 | . 38 . . . 1 3 Robot Hit Streak 11 | . 11 10 7 . 3 5 Robot Miss Streak 4 | . 4 2 2 . . 3 Penetration Max . | . . . . . . . Secondary Targets 1 | . . . 1 . . . Max Gunslinging Chain 1 | . . . 1 . . . Shots Hit Robots 75 | . 27 24 13 . 1 10 Core Hits 56 | . 20 9 8 . 4 15 Critical Kills . | . . . . . . . Critical Parts Destroyed 1 | . . 1 . . . . Critical Strikes 1 | . . 1 . . . . Destroy 1 | . . 1 . . . . Melee Attacks . | . . . . . . . Impact . | . . . . . . . Slashing . | . . . . . . . Piercing . | . . . . . . . Sneak Attacks . | . . . . . . . Combat Hostiles . | . . . . . . . Follow-up Attacks . | . . . . . . . Damage Inflicted 2252 | . 400 279 163 . 122 1288 Guns 880 | . 388 279 146 . . 67 Cannons 20 | . . . . . 7 13 Explosions 1323 | . . . . . 115 1208 Melee . | . . . . . . . Ramming 29 | . 12 . 17 . . . Kinetic 283 | . . 138 78 . . 67 Thermal 209 | . . 141 68 . . . Explosive 91 | . . . . . . 91 Electromagnetic 1640 | . 388 . . . 122 1130 Impact . | . . . . . . . Slashing . | . . . . . . . Piercing . | . . . . . . . Highest Corruption 19 | . . . . . 2 19 Average Corruption 4 | . . . . . 2 5 Corruption Purged . | . . . . . . . Corruption Blocked . | . . . . . . . Effects 4 | . . . . . . 4 Message Errors 1 | . . . . . . 1 Matter Fused 2 | . . . . . . 2 Energy Discharges 1 | . . . . . . 1 Overload Shots . | . . . . . . . Overflow Damage 29 | . . . . . . 29 Projectiles . | . . . . . . . Explosions 29 | . . . . . . 29 Melee . | . . . . . . . Knockbacks . | . . . . . . . Impact . | . . . . . . . Kinetic . | . . . . . . . Secondary . | . . . . . . . Self-Inflicted Damage . | . . . . . . . Shots . | . . . . . . . Rammed . | . . . . . . . Targets Rammed 8 | . 5 . 3 . . . Kicked 8 | . 5 . 3 . . . Crushed . | . . . . . . . Highest Temperature 138 | . 138 6 116 . 36 50 Average Temperature 43 | . 60 4 37 . 22 16 Received Heat Transfer 406 | . 78 63 130 . . 135 Siege Activations . | . . . . . . . Robots Corrupted . | . . . . . . . Combat Hostiles . | . . . . . . . Parts Fried 9 | . 3 . . . . 6 Impact Corruptions . | . . . . . . . Robots Melted . | . . . . . . . Combat Hostiles . | . . . . . . . Parts Melted 1 | . . 1 . . . . Heat Transferred 487 | . . 325 162 . . . Parts Sabotaged . | . . . . . . . Parts Stolen . | . . . . . . . Parts Stripped . | . . . . . . . Power Chain Reactions . | . . . . . . . Latent Energy Used 681 | . . . . . 81 600 LE Corruption 11 | . . . . . 2 9 Alert | -11 -10 -9 -9 -9 -8 -8 ------- Run | Yrd Mat Mat Min Exi Min Mat Peak Influence 493 | . 237 285 275 . 72 493 Initial 111 | . . 100 111 . . 27 Average 137 | . 96 183 193 . 25 136 Maximum Alert Level 2 | . 1 1 1 . . 2 Low Security (%) 62 | 100 78 54 32 . 100 75 Level 1 34 | . 21 45 67 . . 10 Level 2 2 | . . . . . . 14 Level 3 . | . . . . . . . Level 4 . | . . . . . . . Level 5 . | . . . . . . . High Security . | . . . . . . . Max Security . | . . . . . . . Squads Dispatched 6 | . 2 3 . . . 1 Investigation . | . . . . . . . Extermination . | . . . . . . . Reinforcement 5 | . 2 3 . . . . Assault 1 | . . . . . . 1 Garrison . | . . . . . . . Intercept . | . . . . . . . Searches Triggered . | . . . . . . . Construction Impeded . | . . . . . . . Haulers Reinforced . | . . . . . . . Active Scanning Responses . | . . . . . . . Cargo Convoy Interrupts . | . . . . . . . Stealth | -11 -10 -9 -9 -9 -8 -8 --------- Run | Yrd Mat Mat Min Exi Min Mat Distress Signals 3 | . 1 1 . . . 1 Communications Jammed . | . . . . . . . Distress Signals . | . . . . . . . Times Spotted 55 | . 14 10 19 . 1 11 Peak Tracking Total 12 | . 4 5 12 . 3 5 Tactical Retreats 2 | . . 2 . . . . Traps | -11 -10 -9 -9 -9 -8 -8 ------- Run | Yrd Mat Mat Min Exi Min Mat Traps Triggered . | . . . . . . . Indirectly . | . . . . . . . Trap Hack Attempts . | . . . . . . . Triggered . | . . . . . . . Disarmed . | . . . . . . . Reprogrammed . | . . . . . . . Reused . | . . . . . . . Traps Extracted . | . . . . . . . Installed . | . . . . . . . Triggered . | . . . . . . . Machines | -11 -10 -9 -9 -9 -8 -8 ---------- Run | Yrd Mat Mat Min Exi Min Mat Machines Disabled 6 | . . . . . . 6 Max in Single Turn 2 | . . . . . . 2 Garrison Access 1 | . . . . . . 1 Machines Repaired . | . . . . . . . Machines Dismantled . | . . . . . . . Machines Sabotaged . | . . . . . . . Overloaded Fab Kills . | . . . . . . . Hacking | -11 -10 -9 -9 -9 -8 -8 --------- Run | Yrd Mat Mat Min Exi Min Mat Machines Accessed 5 | . 3 1 1 . . . Terminals 2 | . 2 . . . . . Fabricators . | . . . . . . . Repair Stations . | . . . . . . . Recycling Units 1 | . 1 . . . . . Scanalyzers 1 | . . 1 . . . . Garrison Access . | . . . . . . . Total Hacks 6 | . 3 2 1 . . . Successful 4 | . 1 2 1 . . . Failed 2 | . 2 . . . . . Catastrophic 1 | . 1 . . . . . Database Lockouts . | . . . . . . . Manual 5 | . 3 . . 1 . 1 Terminals 2 | . 2 . . . . . Fabricators . | . . . . . . . Repair Stations . | . . . . . . . Recycling Units 1 | . 1 . . . . . Scanalyzers 2 | . . 2 . . . . Garrison Access . | . . . . . . . Terminal Hacks 2 | . 1 . 1 . . . Open Door 1 | . . . 1 . . . Zone Layout 1 | . 1 . . . . . Fabricator Hacks . | . . . . . . . Repair Station Hacks . | . . . . . . . Recycling Unit Hacks . | . . . . . . . Scanalyzer 2 | . . 2 . . . . Insert Component 1 | . . 1 . . . . Analyze 1 | . . 1 . . . . Garrison Access Hacks . | . . . . . . . Unauthorized Hacks . | . . . . . . . Terminals . | . . . . . . . Fabricators . | . . . . . . . Repair Stations . | . . . . . . . Recycling Units . | . . . . . . . Scanalyzers . | . . . . . . . Garrison Access . | . . . . . . . Data Cores Recovered . | . . . . . . . Used . | . . . . . . . Hacking Detections 3 | . 2 1 . . . . Full Trace Events . | . . . . . . . Feedback Events . | . . . . . . . Feedback Blocked . | . . . . . . . Robot Schematics Acquired . | . . . . . . . Robots Built . | . . . . . . . Authchips . | . . . . . . . Time . | . . . . . . . Total Robot Build Rating . | . . . . . . . Part Schematics Acquired 1 | . . 1 . . . . Parts Built . | . . . . . . . Authchips . | . . . . . . . Time . | . . . . . . . Total Part Build Rating . | . . . . . . . Parts Repaired . | . . . . . . . Time . | . . . . . . . Parts Recycled . | . . . . . . . Recycled Matter . | . . . . . . . Retrieved Matter . | . . . . . . . Retrieved Components . | . . . . . . . Parts Scanalyzed 1 | . . 1 . . . . Part Schematics Acquired 1 | . . 1 . . . . Parts Damaged . | . . . . . . . Bothacking | -11 -10 -9 -9 -9 -8 -8 ------------ Run | Yrd Mat Mat Min Exi Min Mat Used RIF Installer . | . . . . . . . Robots Hacked . | . . . . . . . Non-combat . | . . . . . . . Combat . | . . . . . . . Robot Hacks Applied . | . . . . . . . Relay Couplers Released 3 | . . . . . . 3 Machine Destruction 3 | . . . . . . 3 Fabnet Peak Effective % . | . . . . . . . Robots Rewired . | . . . . . . . Allies Hacked . | . . . . . . . Hacks Repelled . | . . . . . . . Allies | -11 -10 -9 -9 -9 -8 -8 -------- Run | Yrd Mat Mat Min Exi Min Mat Total Allies 1 | . . . 1 . . . Largest Group 1 | . . . 1 . . . Highest-Rated Group 31 | . . . 31 . . . Highest-Rated Ally 31 | . . . 31 . . . Total Orders . | . . . . . . . Ally Attacks 7 | . . . 7 . . . Total Damage 101 | . . . 101 . . . Kills 2 | . . . 2 . . . Allies Corrupted . | . . . . . . . Allies Melted . | . . . . . . . Intel | -11 -10 -9 -9 -9 -8 -8 ------- Run | Yrd Mat Mat Min Exi Min Mat Robot Analysis Total . | . . . . . . . Derelict Logs Recovered 2 | . . . 2 . . . Drone Launches 4 | . . . 4 . . . Drone Recoveries 3 | . . . 3 . . . Exploration | -11 -10 -9 -9 -9 -8 -8 ------------- Run | Yrd Mat Mat Min Exi Min Mat Turns Passed 2078 | 56 334 315 547 281 204 341 Spaces Moved 1319 | 39 181 163 411 232 143 150 Core 19 | 16 . . . . . 3 Treads . | . . . . . . . Legs 1134 | 23 181 163 411 232 124 . Wheels . | . . . . . . . Hover . | . . . . . . . Flight 166 | . . . . . 19 147 Fastest Speed 50 | 50 120 120 120 120 114 114 Average Speed 129 | 109 120 120 120 120 133 197 Slowest Speed 530 | 190 120 120 120 120 450 530 Overloaded Moves . | . . . . . . . Propulsion Burnouts . | . . . . . . . Robots Hopped . | . . . . . . . Cave-ins Triggered . | . . . . . . . Time Travels 1 | . . . . 1 . . Exploration Rate (%) 37 | 4 52 19 64 59 44 19 Regions Visited 6 Branch Regions 3 Pre-discovered Areas . | . . . . . . . Known Exits Taken 1 | . . . 1 . . . Unknown Exits Taken 5 | 1 1 1 . 1 1 . Scrap Searched 2 | . . . 1 . 1 . Spaces Dug . | . . . . . . . Terrain Destroyed 57 | . . . . . 2 55 Melee . | . . . . . . . Projectile . | . . . . . . . AOE 57 | . . . . . 2 55 Terrain Rammed . | . . . . . . . Walls Destroyed . | . . . . . . . Machines Disabled . | . . . . . . . Actions | -11 -10 -9 -9 -9 -8 -8 --------- Run | Yrd Mat Mat Min Exi Min Mat Total 1579 | 52 260 252 444 234 158 179 Wait 105 | . 32 65 6 . . 2 Move 1313 | 38 180 162 410 231 142 150 Hop . | . . . . . . . Pick Up 39 | 8 11 5 4 2 6 3 Fast Attach . | . . . . . . . Attach 20 | 6 3 1 2 . 2 6 Detach . | . . . . . . . Swap 12 | . 4 1 3 1 1 2 Drop 20 | . 6 2 5 . 6 1 Fire 62 | . 19 16 11 . 1 15 Melee . | . . . . . . . Ram . | . . . . . . . Kick 8 | . 5 . 3 . . . Crush . | . . . . . . . Escape Stasis . | . . . . . . . Rewire . | . . . . . . . Trap . | . . . . . . . Miscellaneous . | . . . . . . . Route ------- -11/Scrapyard -10/Materials -9/Materials -9/Mines (discovered 3 exits: *Mat x2 / *Exi) -9/Exiles -8/Mines -8/Materials History --------- Turn | Location | Event 2 | -11/Scrapyard | Met Revision 17 4 | -11/Scrapyard | Discovered new exit (range 16) 57 | -11/Scrapyard | Entered Materials 304 | -10/Materials | Build established: Mutant 380 | -10/Materials | Discovered new exit (range 6) 391 | -10/Materials | Entered another Materials area 391 | -9/Materials | Evolved 2 slots: Propulsion x1, Utility x1 699 | -9/Materials | Discovered new exit (range 6) 706 | -9/Materials | Entered Mines 812 | -9/Mines | Discovered new exit (range 7) 855 | -9/Mines | Discovered new exit (range 8) 864 | -9/Mines | Received a Mining Laser from a helpful Derelict 874 | -9/Mines | Identified exit to Exiles 1024 | -9/Mines | Learned Materials garrison access intel 1085 | -9/Mines | Found the Drone Emporium 1091 | -9/Mines | Found Prototype Device 1093 | -9/Mines | Identified Splice Drone Bay 1192 | -9/Mines | Assembled infested the area 1233 | -9/Mines | Met 8R-AWN 1253 | -9/Mines | Entered Exiles 1281 | -9/Exiles | Welcomed by 8R-AWN 1304 | -9/Exiles | Build established: Scavenger-Mutant 1304 | -9/Exiles | Met EX-HEX 1343 | -9/Exiles | Met EX-BIN 1375 | -9/Exiles | Aligned with FarCom system 1376 | -9/Exiles | Given EX-Vault access code 1412 | -9/Exiles | Opened EX-Vault 1418 | -9/Exiles | Found Prototype Device 1419 | -9/Exiles | Identified Chronowheel 1419 | -9/Exiles | Activated Chronowheel 1419 | -9/Exiles | Spacetime reconverged on an earlier point 1421 | -9/Exiles | Found Prototype Energy Cannon 1422 | -9/Exiles | Identified Latent Energy Streamer 1447 | -9/Exiles | Warned to stay clear of 0b10 Research branches 1481 | -9/Exiles | Met EX-DEC 1521 | -9/Exiles | Discovered new exit (range 14) 1534 | -9/Exiles | Left Exiles lab with Latent Energy Streamer 1534 | -9/Exiles | Entered Mines 1678 | -8/Mines | Discovered new exit (range 15) 1738 | -8/Mines | Entered Materials 1738 | -8/Materials | Evolved 2 slots: Power x1, Propulsion x1 1739 | -8/Materials | Loaded intel: 1 garrison access location 1825 | -8/Materials | Build established: Scavenger-Skirmisher 2078 | -8/Materials | System corruption reached 10% 2079 | -8/Materials | Self-destructed Last Messages --------------- 02064_ U-05 Engineer lays Concrete. 02066_ Lgt. Nuclear Core destroyed. 02066_ U-05 Engineer lays Concrete. 02066_ U-05 Engineer builds a Door. 02066_ M-13 Machinist repairs G-47 Trooper. 02067_ U-05 Engineer lays Concrete. 02068_ Aluminum Leg destroyed. 02070_ U-05 Engineer lays Concrete. 02071_ U-05 Engineer builds a Wall. 02071_ U-05 Engineer lays Concrete. 02071_ Critical hit (Burn: +37). 02072_ U-05 Engineer lays Concrete. 02073_ Lgt. Assault Rifle destroyed. 02074_ U-05 Engineer lays Concrete. 02077_ Integrated Corrupted Carbon-fiber Leg (+10). 02078_ System corrupted: Matter fused (-7). 02078_ Acquired 17 matter. 02078_ Carbon-fiber Leg destroyed. 02079_ Acquired 5 matter. Map ----- +----------------------------------------------------+ | ?????????????????????????????????????????????????? | | ?????????????????????????????????????????????????? | | ?????????????????????????????????????????????????? | | ?????????????????????????????????????????????????? | | ?????????????????????????????????????????????????? | | ?????????????????????????????????????????????????? | | ?????????????????????????????????????????????????? | | ?????????????????????????????????????????????????? | | ?????????????????????+???????????????????????????? | | ??????????? ??????? ?????????????????????????????? | | ? ????????????????????"??????????????????????????? | | ???#######???????????????????????????????????????? | | ?# #???"????????????????????????????????????? | | ?#""" #????????? ? ????#??? ???????????????????? | | ?#""" ] #?#?????????????????? ???????????????????? | | ?#""" #??????#?????##?#????????????????????????? | | ?# #????????#?#?#??????? ?? ???????????????? | | ?#""" ############?###?#######?????????????????? | | ?#""" ## #?# #?????????????????? | | ?#""" ## """ """ #?# """ #?????#???????????? | | ?# ## """ """ #?# """ #?????????????????? | | ?#""" ## """ """ ### """ #?????????????????? | | ?#""" ## #?# """ " " ##????????????????? | | ##""" ## #?# """ "R" #?????????????????? | | # ## ! = #?# """ #???????#?????????? | | #### " ### @ #?????????????????? | | # /########;;;##s############"%= ??????? | | # !%s = ??????? | | # % ??????? | | + % % g !??????? | | # ""????? | | # = "% % ?G"???? | | # ########"" # s """ ???""????? | | ## ##?#??? ""???????????? | | # ##??? """??? ??????? | | # ##??# "???????????? | | ## ##### """ " """??????????? | | # """##""""" ! # "" ??????????? | | # R"##""""" # ""???????????? | | # """#?""""" ###+#### "???????????? | | + #####???" #?? ## ???????????? | | # ##????? #??"""#? = ????????????? | | # #???????#####???"""#?? ??????????????? | | ##### #########????????????????????????????????? | | ##??# # ###???????????????????????????????? | | ##### # """ #?????????????????????????????????? | | # # """ #?????????????????????????????????? | | """ # # """ #??? ?????????????????????????????? | | """ # # #?????????????????????????????????? | | """ # # """ ##????????????????????????????????? | +----------------------------------------------------+ Best States ------------- Heat Dissipation 31 Energy Generation 23 Energy Capacity 325 Matter Stores 300 Matter Capacity 300 Sight Range 16 Terrain Scan Range 16 Terrain Scan Density 10 Evasion (%) 55 Targeting Accuracy 6 Item Schematics ----------------- Lgt. Nuclear Core | -9/Materials | Scanalyzed Robot Schematics ------------------ None Fabricated ------------ Nothing Alien Tech Used ----------------- None Achievements -------------- Quick And Dirty Slippery One Challenges ------------ None Game ------ Seed SalvageGyrokineticFrame Manual? 0 Play Time 00:22:38 Cumulative 10.2 hours Start 2024.03.16 @ 18:31:34 End 2024.03.16 @ 22:48:58 Sessions 2 Manual Loads 0 Difficulty Rogue Special Mode None Game No. 26 Rogue 24 Adventurer 2 Explorer 0 Win Type - Total 0 Types 0/0/0/0/0/0/0/0/0 Lore% 16 Gallery% 24 Achievement% 15 Wizard Run 0 Options --------- Layout 1 ASCII 0 Keyboard 0 Movement Arrows Keybinds 0 Fullscreen 1 Font 24/Smallcaps Map View 50x35 Zoom Use 0% Tactical HUD 1 Map Filters NONE Filters NONE Steam 1 RUN: 5071ab98-b9f5-440c-80f2-790616132ebb